[Event "Belt and Road Women-ch 2020"]
[Site "Xi'an"]
[Date "2020.12.05"]
[Round "2.5"]
[White "Lei, Tingjie"]
[Black "Khademalsharieh, Sarasadat"]
[Result "0-1"]
[ECO "C78"]
[WhiteElo "2505"]
[BlackElo "2494"]
[Annotator "ChessBase"]
[PlyCount "124"]
[EventDate "2020.12.03"]
[EventCountry "CHN"]
[SourceTitle "playchess.com"]
[Source "ChessBase"]
[SourceQuality "1"]
[TimeControl "900+5"]

1. e4 {[%emt 0:00:05]} e5 {[%emt 0:00:03]} 2. Nf3 {[%emt 0:00:02]} Nc6 {[%emt 0:00:01]} 3. Bb5 {[%emt 0:00:01]} a6 {[%emt 0:00:02]} 4. Ba4 {[%emt 0:00:01]} Nf6 {[%emt 0:00:04]} 5. O-O {[%emt 0:00:03]} b5 {[%emt 0:00:02]} 6. Bb3 {[%emt 0:00:01]} Bc5 {[%emt 0:00:00]} 7. a4 {[%emt 0:00:02]} Rb8 {[%emt 0:00:02]} 8. c3 {[%emt 0:00:01]} d6 {[%emt 0:00:01]} 9. d4 {[%emt 0:00:01]} Bb6 {[%emt 0:00:01]} 10. a5 {[%emt 0:00:02]} Ba7 {[%emt 0:00:01]} 11. h3 {[%emt 0:00:01]} Bb7 {[%emt 0:00:02]} 12. Re1 {[%emt 0:00:16]} O-O {[%emt 0:00:13]} 13. Be3 {[%emt 0:01:08]} exd4 {[%emt 0:01:48]} 14. cxd4 {[%emt 0:00:03]} Ne7 {[%emt 0:01:09]} 15. e5 {[%emt 0:01:30]} Ne4 {[%emt 0:00:29]} 16. Ng5 {[%emt 0:03:06]} dxe5 {[%emt 0:02:13]} 17. Nxe4 {[%emt 0:01:02]} Bxe4 {[%emt 0:00:03]} 18. Bg5 {[%emt 0:03:06]} Bxb1 {[%emt 0:00:32]} 19. Rxb1 {[%emt 0:00:04]} h6 {[%emt 0:00:42]} 20. Bxe7 {[%emt 0:02:05]} Qxe7 {[%emt 0:00:03]} 21. dxe5 {[%emt 0:00:01]} Rbd8 {[%emt 0:00:35]} 22. Qf3 {[%emt 0:00:09]} Rd2 {[%emt 0:00:42]} 23. Re2 {[%emt 0:00:04]} Rfd8 {[%emt 0:00:30]} 24. Rbe1 {[%emt 0:00:09]} R2d3 {[%emt 0:02:23]} 25. Qb7 {[%emt 0:01:26]} Bxf2+ {[%emt 0:00:11]} 26. Rxf2 {[%emt 0:00:03]} Rxb3 {[%emt 0:00:01]} 27. e6 {[%emt 0:00:58]} fxe6 {[%emt 0:00:54]} 28. Qxa6 {[%emt 0:00:07]} e5 {[%emt 0:01:39]} 29. Qg6 {[%emt 0:01:02]} Rbd3 {[%emt 0:00:33]} 30. a6 {[%emt 0:00:15]} R3d6 {[%emt 0:00:26]} 31. Qh5 {[%emt 0:00:01]} Rxa6 {[%emt 0:01:21]} 32. Rxe5 {[%emt 0:00:03]} Ra1+ {[%emt 0:00:12]} 33. Kh2 {[%emt 0:00:01]} Qd6 {[%emt 0:00:01]} 34. Rfe2 {[%emt 0:00:07]} Rd1 {[%emt 0:00:09]} 35. g3 {[%emt 0:00:14]} Rf8 {[%emt 0:00:25]} 36. Re8 {[%emt 0:00:17]} Rdf1 {[%emt 0:00:04]} 37. Qxb5 {[%emt 0:00:08]} Kh7 {[%emt 0:00:02]} 38. Rxf8 {[%emt 0:00:04]} Rxf8 {[%emt 0:00:06]} 39. Qc4 {[%emt 0:00:03]} Qg6 {[%emt 0:00:05]} 40. b4 {[%emt 0:00:12]} c6 {[%emt 0:00:04]} 41. Qe4 {[%emt 0:00:06]} Rf2+ {[%emt 0:00:01]} 42. Kh1 {[%emt 0:00:06]} Rxe2 {[%emt 0:00:02]} 43. Qxe2 {[%emt 0:00:02]} Qxg3 {[%emt 0:00:01]} 44. Qc2+ {[%emt 0:00:05]} Qg6 {[%emt 0:00:00]} 45. Qc5 {[%emt 0:00:02]} Qe4+ {[%emt 0:00:02]} 46. Kh2 {[%emt 0:00:03]} Qf4+ {[%emt 0:00:12]} 47. Kh1 {[%emt 0:00:10]} Qf3+ {[%emt 0:00:06]} 48. Kh2 {[%emt 0:00:01]} h5 {[%emt 0:00:01]} 49. Qg5 {[%emt 0:00:11]} g6 {[%emt 0:00:10]} 50. Qe7+ {[%emt 0:00:02]} Kh6 {[%emt 0:00:07]} 51. Qd6 {[%emt 0:00:02]} Qe4 {[%emt 0:00:16]} 52. Kg3 {[%emt 0:00:11]} h4+ {[%emt 0:00:05]} 53. Kf2 {[%emt 0:00:01]} Kg5 {[%emt 0:00:07]} 54. Qd8+ {[%emt 0:00:03]} Kf5 {[%emt 0:00:05]} 55. Qf8+ {[%emt 0:00:15]} Ke5 {[%emt 0:00:01]} 56. Qc5+ {[%emt 0:00:06]} Ke6 {[%emt 0:00:02]} 57. Kg1 {[%emt 0:00:07]} Qe1+ {[%emt 0:00:04]} 58. Kg2 {[%emt 0:00:02]} Qg3+ {[%emt 0:00:00]} 59. Kf1 {[%emt 0:00:01]} Qxh3+ {[%emt 0:00:01]} 60. Ke2 {[%emt 0:00:01]} Qg2+ {[%emt 0:00:02]} 61. Ke1 {[%emt 0:00:02]} Qg3+ {[%emt 0:00:02]} 62. Ke2 {[%emt 0:00:01]} Qe5+ {[%emt 0:00:01]} 0-1

[Event "Belt and Road Women-ch 2020"]
[Site "Xi'an"]
[Date "2020.12.05"]
[Round "3.1"]
[White "Khademalsharieh, Sarasadat"]
[Black "Abdumalik, Zhansaya"]
[Result "1/2-1/2"]
[ECO "E60"]
[WhiteElo "2494"]
[BlackElo "2478"]
[Annotator "ChessBase"]
[PlyCount "20"]
[EventDate "2020.12.03"]
[EventCountry "CHN"]
[SourceTitle "playchess.com"]
[Source "ChessBase"]
[SourceQuality "1"]
[TimeControl "900+5"]

1. d4 {[%emt 0:00:04]} Nf6 {[%emt 0:00:02]} 2. c4 {[%emt 0:00:02]} g6 {[%emt 0:00:03]} 3. g3 {[%emt 0:00:01]} Bg7 {[%emt 0:00:13]} 4. Bg2 {[%emt 0:00:03]} c5 {[%emt 0:00:01]} 5. dxc5 {[%emt 0:00:03]} Na6 {[%emt 0:00:16]} 6. Nh3 {[%emt 0:00:14]} O-O {[%emt 0:00:10]} 7. O-O {[%emt 0:00:01]} Nxc5 {[%emt 0:00:02]} 8. Nc3 {[%emt 0:00:02]} d6 {[%emt 0:00:10]} 9. Nf4 {[%emt 0:00:02]} Rb8 {[%emt 0:00:13]} 10. Bd2 {[%emt 0:00:55]} e5 {[%emt 0:00:52]} 1/2-1/2

[Event "Belt and Road Women-ch 2020"]
[Site "Xi'an"]
[Date "2020.12.05"]
[Round "3.2"]
[White "Muzychuk, Mariya"]
[Black "Lei, Tingjie"]
[Result "1/2-1/2"]
[ECO "C51"]
[WhiteElo "2544"]
[BlackElo "2505"]
[Annotator "ChessBase"]
[PlyCount "138"]
[EventDate "2020.12.03"]
[EventCountry "CHN"]
[SourceTitle "playchess.com"]
[Source "ChessBase"]
[SourceQuality "1"]
[TimeControl "900+5"]

1. e4 {[%emt 0:00:06]} e5 {[%emt 0:00:02]} 2. Nf3 {[%emt 0:00:02]} Nc6 {[%emt 0:00:00]} 3. Bc4 {[%emt 0:00:04]} Bc5 {[%emt 0:00:02]} 4. b4 {[%emt 0:00:05]} Bxb4 {[%emt 0:00:03]} 5. c3 {[%emt 0:00:02]} Be7 {[%emt 0:00:32]} 6. d4 {[%emt 0:00:09]} Na5 {[%emt 0:00:43]} 7. Bd3 {[%emt 0:00:20]} d6 {[%emt 0:00:06]} 8. O-O {[%emt 0:01:15]} Nf6 {[%emt 0:00:11]} 9. Qa4+ {[%emt 0:00:14]} c6 {[%emt 0:00:06]} 10. dxe5 {[%emt 0:00:12]} dxe5 {[%emt 0:00:02]} 11. Nxe5 {[%emt 0:00:10]} O-O {[%emt 0:00:37]} 12. Nd2 {[%emt 0:03:00]} Qc7 {[%emt 0:01:10]} 13. Nef3 {[%emt 0:00:14]} Rd8 {[%emt 0:00:41]} 14. Qc2 {[%emt 0:00:10]} h6 {[%emt 0:02:08]} 15. c4 {[%emt 0:01:38]} c5 {[%emt 0:00:21]} 16. Bb2 {[%emt 0:00:17]} Nc6 {[%emt 0:00:07]} 17. a3 {[%emt 0:00:04]} Ng4 {[%emt 0:00:40]} 18. h3 {[%emt 0:00:22]} Nge5 {[%emt 0:00:10]} 19. Nxe5 {[%emt 0:00:17]} Nxe5 {[%emt 0:00:02]} 20. Be2 {[%emt 0:00:01]} Ng6 {[%emt 0:00:09]} 21. Rfd1 {[%emt 0:00:17]} Be6 {[%emt 0:01:09]} 22. Nf1 {[%emt 0:01:02]} Rxd1 {[%emt 0:00:52]} 23. Rxd1 {[%emt 0:00:02]} Rd8 {[%emt 0:00:01]} 24. Ne3 {[%emt 0:00:21]} Rxd1+ {[%emt 0:00:02]} 25. Bxd1 {[%emt 0:00:35]} Qd7 {[%emt 0:01:13]} 26. Nf5 {[%emt 0:01:57]} Bf8 {[%emt 0:00:23]} 27. Bg4 {[%emt 0:00:12]} b5 {[%emt 0:02:25]} 28. cxb5 {[%emt 0:01:38]} Qxb5 {[%emt 0:00:03]} 29. e5 {[%emt 0:00:24]} Qb3 {[%emt 0:01:47]} 30. Qd2 {[%emt 0:00:59]} Qb8 {[%emt 0:00:37]} 31. Nd6 {[%emt 0:00:16]} Bb3 {[%emt 0:00:23]} 32. Qc3 {[%emt 0:00:52]} Nxe5 {[%emt 0:00:08]} 33. Nf5 {[%emt 0:00:11]} f6 {[%emt 0:00:18]} 34. Be2 {[%emt 0:00:07]} Be6 {[%emt 0:00:03]} 35. Ne3 {[%emt 0:00:04]} Qd8 {[%emt 0:00:13]} 36. f4 {[%emt 0:00:06]} Nc6 {[%emt 0:00:08]} 37. Bc4 {[%emt 0:00:05]} Bxc4 {[%emt 0:00:04]} 38. Qxc4+ {[%emt 0:00:01]} Kh8 {[%emt 0:00:02]} 39. Nd5 {[%emt 0:00:09]} Ne7 {[%emt 0:00:04]} 40. Nxf6 {[%emt 0:00:09]} Qb8 {[%emt 0:00:20]} 41. Nd7 {[%emt 0:00:09]} Qxb2 {[%emt 0:00:02]} 42. Nxf8 {[%emt 0:00:02]} Qb1+ {[%emt 0:00:05]} 43. Kh2 {[%emt 0:00:01]} Qf5 {[%emt 0:00:01]} 44. Ne6 {[%emt 0:00:03]} Nd5 {[%emt 0:00:03]} 45. Nxc5 {[%emt 0:00:03]} Nxf4 {[%emt 0:00:02]} 46. Ne4 {[%emt 0:00:03]} Qe5 {[%emt 0:00:03]} 47. Kh1 {[%emt 0:00:16]} Qa1+ {[%emt 0:00:02]} 48. Kh2 {[%emt 0:00:01]} Qe5 {[%emt 0:00:02]} 49. Kh1 {[%emt 0:00:01]} Nh5 {[%emt 0:00:07]} 50. Qc8+ {[%emt 0:00:03]} Kh7 {[%emt 0:00:01]} 51. Qc2 {[%emt 0:00:02]} g6 {[%emt 0:00:12]} 52. Kg1 {[%emt 0:00:15]} Qd4+ {[%emt 0:00:08]} 53. Kh2 {[%emt 0:00:02]} Qe5+ {[%emt 0:00:02]} 54. Kg1 {[%emt 0:00:01]} Nf4 {[%emt 0:00:06]} 55. Qc4 {[%emt 0:00:05]} Kg7 {[%emt 0:00:19]} 56. a4 {[%emt 0:00:01]} h5 {[%emt 0:00:02]} 57. Qc2 {[%emt 0:00:11]} h4 {[%emt 0:00:03]} 58. Qc4 {[%emt 0:00:04]} Kh6 {[%emt 0:00:04]} 59. Qb4 {[%emt 0:00:07]} Qf5 {[%emt 0:00:14]} 60. Qc4 {[%emt 0:00:05]} a5 {[%emt 0:00:05]} 61. Kh2 {[%emt 0:00:07]} Ne6 {[%emt 0:00:03]} 62. Qd3 {[%emt 0:00:07]} Qf4+ {[%emt 0:00:04]} 63. Kg1 {[%emt 0:00:03]} Qc1+ {[%emt 0:00:03]} 64. Kh2 {[%emt 0:00:02]} Qc7+ {[%emt 0:00:02]} 65. Kg1 {[%emt 0:00:03]} Qf4 {[%emt 0:00:09]} 66. Qd2 {[%emt 0:00:04]} Qxd2 {[%emt 0:00:02]} 67. Nxd2 {[%emt 0:00:02]} Nc5 {[%emt 0:00:11]} 68. Nc4 {[%emt 0:00:01]} Nxa4 {[%emt 0:00:01]} 69. Nxa5 {[%emt 0:00:02]} Kg5 {[%emt 0:00:02]} 1/2-1/2

[Event "Belt and Road Women-ch 2020"]
[Site "Xi'an"]
[Date "2020.12.05"]
[Round "3.3"]
[White "Stefanova, Antoaneta"]
[Black "Tan, Zhongyi"]
[Result "0-1"]
[ECO "D02"]
[WhiteElo "2466"]
[BlackElo "2510"]
[Annotator "ChessBase"]
[PlyCount "88"]
[EventDate "2020.12.03"]
[EventCountry "CHN"]
[SourceTitle "playchess.com"]
[Source "ChessBase"]
[SourceQuality "1"]
[TimeControl "900+5"]

1. d4 {[%emt 0:00:03]} d5 {[%emt 0:00:06]} 2. Bf4 {[%emt 0:00:05]} Nf6 {[%emt 0:00:05]} 3. e3 {[%emt 0:00:05]} c5 {[%emt 0:00:42]} 4. c3 {[%emt 0:00:13]} Nc6 {[%emt 0:00:12]} 5. Nd2 {[%emt 0:00:12]} e6 {[%emt 0:00:11]} 6. Ngf3 {[%emt 0:00:05]} Bd6 {[%emt 0:00:03]} 7. Bg3 {[%emt 0:00:02]} O-O {[%emt 0:00:04]} 8. Bd3 {[%emt 0:00:02]} Qe7 {[%emt 0:00:03]} 9. Ne5 {[%emt 0:00:49]} Nd7 {[%emt 0:00:02]} 10. Nxd7 {[%emt 0:01:19]} Qxd7 {[%emt 0:00:04]} 11. f4 {[%emt 0:00:54]} f5 {[%emt 0:02:54]} 12. O-O {[%emt 0:00:10]} c4 {[%emt 0:00:15]} 13. Bc2 {[%emt 0:00:03]} b5 {[%emt 0:00:01]} 14. Be1 {[%emt 0:00:34]} b4 {[%emt 0:00:05]} 15. Ba4 {[%emt 0:00:39]} bxc3 {[%emt 0:00:05]} 16. bxc3 {[%emt 0:00:04]} Qc7 {[%emt 0:00:04]} 17. g4 {[%emt 0:01:10]} Ne7 {[%emt 0:00:14]} 18. g5 {[%emt 0:00:16]} Bd7 {[%emt 0:00:25]} 19. Bc2 {[%emt 0:00:05]} Rfb8 {[%emt 0:00:10]} 20. Nf3 {[%emt 0:00:16]} Rb2 {[%emt 0:00:19]} 21. a4 {[%emt 0:00:37]} Be8 {[%emt 0:00:27]} 22. Bd2 {[%emt 0:00:35]} Bh5 {[%emt 0:01:30]} 23. Bc1 {[%emt 0:00:08]} Rb7 {[%emt 0:00:03]} 24. Qd2 {[%emt 0:00:18]} Nc6 {[%emt 0:00:06]} 25. Qg2 {[%emt 0:02:01]} Na5 {[%emt 0:00:35]} 26. Nh4 {[%emt 0:02:08]} Nb3 {[%emt 0:00:23]} 27. Ra2 {[%emt 0:00:06]} g6 {[%emt 0:01:29]} 28. Bd2 {[%emt 0:01:30]} Rab8 {[%emt 0:00:27]} 29. Bd1 {[%emt 0:00:18]} Nxd2 {[%emt 0:00:28]} 30. Qxd2 {[%emt 0:00:10]} Bxd1 {[%emt 0:00:03]} 31. Rxd1 {[%emt 0:00:04]} Qa5 {[%emt 0:00:13]} 32. Nf3 {[%emt 0:00:10]} Rb1 {[%emt 0:00:14]} 33. Rxb1 {[%emt 0:00:24]} Rxb1+ {[%emt 0:00:03]} 34. Kg2 {[%emt 0:00:07]} Rb3 {[%emt 0:00:12]} 35. Rc2 {[%emt 0:00:11]} Qxa4 {[%emt 0:00:02]} 36. h4 {[%emt 0:00:04]} a5 {[%emt 0:00:09]} 37. h5 {[%emt 0:00:03]} Qb5 {[%emt 0:00:08]} 38. hxg6 {[%emt 0:00:20]} hxg6 {[%emt 0:00:01]} 39. Nh4 {[%emt 0:00:03]} Kg7 {[%emt 0:00:21]} 40. Kf3 {[%emt 0:00:07]} a4 {[%emt 0:00:39]} 41. Qh2 {[%emt 0:00:04]} Qe8 {[%emt 0:00:01]} 42. Rc1 {[%emt 0:00:33]} Qh8 {[%emt 0:00:12]} 43. Rh1 {[%emt 0:00:04]} Qh5+ {[%emt 0:00:02]} 44. Kf2 {[%emt 0:00:10]} Rb2+ {[%emt 0:00:02]} 0-1

[Event "Belt and Road Women-ch 2020"]
[Site "Xi'an"]
[Date "2020.12.05"]
[Round "3.4"]
[White "Atalik, Ekaterina"]
[Black "Dzagnidze, Nana"]
[Result "1/2-1/2"]
[ECO "E17"]
[WhiteElo "2430"]
[BlackElo "2524"]
[Annotator "ChessBase"]
[PlyCount "121"]
[EventDate "2020.12.03"]
[EventCountry "CHN"]
[SourceTitle "playchess.com"]
[Source "ChessBase"]
[SourceQuality "1"]
[TimeControl "900+5"]

1. d4 {[%emt 0:00:03]} Nf6 {[%emt 0:00:03]} 2. c4 {[%emt 0:00:03]} e6 {[%emt 0:00:02]} 3. Nf3 {[%emt 0:00:01]} b6 {[%emt 0:00:07]} 4. g3 {[%emt 0:00:09]} Bb7 {[%emt 0:00:07]} 5. Bg2 {[%emt 0:00:04]} Be7 {[%emt 0:00:02]} 6. O-O {[%emt 0:00:02]} O-O {[%emt 0:00:02]} 7. Re1 {[%emt 0:00:02]} Qc8 {[%emt 0:00:08]} 8. Nc3 {[%emt 0:01:10]} Ne4 {[%emt 0:00:05]} 9. Qc2 {[%emt 0:00:20]} f5 {[%emt 0:00:15]} 10. Ne5 {[%emt 0:01:18]} d6 {[%emt 0:01:32]} 11. Nd3 {[%emt 0:00:23]} Nxc3 {[%emt 0:01:09]} 12. Qxc3 {[%emt 0:00:07]} Bxg2 {[%emt 0:00:34]} 13. Kxg2 {[%emt 0:00:01]} Bf6 {[%emt 0:00:02]} 14. Nf4 {[%emt 0:04:40]} Nc6 {[%emt 0:01:44]} 15. Be3 {[%emt 0:00:43]} Qb7 {[%emt 0:00:38]} 16. Kg1 {[%emt 0:00:22]} Rae8 {[%emt 0:00:07]} 17. Rad1 {[%emt 0:00:13]} Nxd4 {[%emt 0:02:07]} 18. Bxd4 {[%emt 0:00:02]} e5 {[%emt 0:00:02]} 19. Nd5 {[%emt 0:00:15]} exd4 {[%emt 0:00:02]} 20. Nxf6+ {[%emt 0:00:02]} Rxf6 {[%emt 0:00:03]} 21. Rxd4 {[%emt 0:00:06]} a5 {[%emt 0:00:49]} 22. Rd5 {[%emt 0:00:24]} f4 {[%emt 0:00:13]} 23. Rg5 {[%emt 0:02:22]} Ree6 {[%emt 0:00:15]} 24. gxf4 {[%emt 0:00:16]} Rg6 {[%emt 0:00:03]} 25. Rg3 {[%emt 0:00:08]} Qe4 {[%emt 0:00:13]} 26. e3 {[%emt 0:00:40]} h5 {[%emt 0:00:04]} 27. Kf1 {[%emt 0:00:55]} Qh1+ {[%emt 0:03:07]} 28. Ke2 {[%emt 0:00:01]} Qxh2 {[%emt 0:00:01]} 29. Rxg6 {[%emt 0:00:01]} Rxg6 {[%emt 0:00:02]} 30. Qd3 {[%emt 0:00:12]} Kh7 {[%emt 0:02:32]} 31. Qe4 {[%emt 0:01:05]} Qh3 {[%emt 0:00:13]} 32. Rg1 {[%emt 0:00:29]} Qe6 {[%emt 0:00:10]} 33. Qd3 {[%emt 0:00:04]} Qf6 {[%emt 0:00:08]} 34. Rh1 {[%emt 0:00:17]} h4 {[%emt 0:00:29]} 35. Qd4 {[%emt 0:00:06]} Qe7 {[%emt 0:00:27]} 36. f5 {[%emt 0:00:04]} Rh6 {[%emt 0:00:02]} 37. Rh3 {[%emt 0:00:02]} Qg5 {[%emt 0:00:11]} 38. Qe4 {[%emt 0:00:04]} Qf6 {[%emt 0:00:02]} 39. b3 {[%emt 0:00:06]} Rh5 {[%emt 0:00:01]} 40. Qg4 {[%emt 0:00:05]} Kh6 {[%emt 0:00:02]} 41. Qf4+ {[%emt 0:00:02]} Qg5 {[%emt 0:00:04]} 42. Kf3 {[%emt 0:00:05]} c6 {[%emt 0:00:18]} 43. e4 {[%emt 0:00:05]} g6 {[%emt 0:00:08]} 44. f6 {[%emt 0:00:21]} Qxf4+ {[%emt 0:00:05]} 45. Kxf4 {[%emt 0:00:00]} Kh7 {[%emt 0:00:04]} 46. Kg4 {[%emt 0:00:05]} Kg8 {[%emt 0:00:01]} 47. Rxh4 {[%emt 0:00:01]} Re5 {[%emt 0:00:02]} 48. f3 {[%emt 0:00:05]} Kf7 {[%emt 0:00:01]} 49. Rh7+ {[%emt 0:00:03]} Kxf6 {[%emt 0:00:00]} 50. Rb7 {[%emt 0:00:03]} b5 {[%emt 0:00:03]} 51. cxb5 {[%emt 0:00:12]} cxb5 {[%emt 0:00:11]} 52. Rb6 {[%emt 0:00:07]} Ke7 {[%emt 0:00:01]} 53. Kf4 {[%emt 0:00:08]} g5+ {[%emt 0:00:02]} 54. Ke3 {[%emt 0:00:01]} Kd7 {[%emt 0:00:02]} 55. Kd4 {[%emt 0:00:15]} b4 {[%emt 0:00:17]} 56. Ra6 {[%emt 0:00:02]} Rc5 {[%emt 0:00:04]} 57. Ra7+ {[%emt 0:00:04]} Ke6 {[%emt 0:00:04]} 58. Ra8 {[%emt 0:00:04]} Kd7 {[%emt 0:00:02]} 59. Ra7+ {[%emt 0:00:11]} Ke6 {[%emt 0:00:02]} 60. Ra8 {[%emt 0:00:08]} Kd7 {[%emt 0:00:02]} 61. Ra7+ {[%emt 0:00:12]} 1/2-1/2

[Event "Belt and Road Women-ch 2020"]
[Site "Xi'an"]
[Date "2020.12.05"]
[Round "3.5"]
[White "Zhao, Xue"]
[Black "Hou, Yifan"]
[Result "0-1"]
[ECO "E21"]
[WhiteElo "2486"]
[BlackElo "2658"]
[Annotator "ChessBase"]
[PlyCount "54"]
[EventDate "2020.12.03"]
[EventCountry "CHN"]
[SourceTitle "playchess.com"]
[Source "ChessBase"]
[SourceQuality "1"]
[TimeControl "900+5"]

1. d4 {[%emt 0:00:05]} Nf6 {[%emt 0:00:04]} 2. c4 {[%emt 0:00:03]} e6 {[%emt 0:00:02]} 3. Nf3 {[%emt 0:00:03]} b6 {[%emt 0:00:34]} 4. Nc3 {[%emt 0:00:07]} Bb7 {[%emt 0:00:03]} 5. g3 {[%emt 0:00:10]} Bb4 {[%emt 0:00:37]} 6. Bg2 {[%emt 0:00:11]} Bxc3+ {[%emt 0:00:15]} 7. bxc3 {[%emt 0:00:02]} Be4 {[%emt 0:00:01]} 8. Ba3 {[%emt 0:02:00]} d6 {[%emt 0:01:45]} 9. c5 {[%emt 0:00:13]} dxc5 {[%emt 0:00:14]} 10. Qa4+ {[%emt 0:00:50]} Bc6 {[%emt 0:01:33]} 11. Qc2 {[%emt 0:00:39]} Nbd7 {[%emt 0:00:42]} 12. Rd1 {[%emt 0:00:22]} Qe7 {[%emt 0:00:12]} 13. O-O {[%emt 0:00:37]} O-O {[%emt 0:00:05]} 14. Rfe1 {[%emt 0:00:32]} Be4 {[%emt 0:00:31]} 15. Qc1 {[%emt 0:00:41]} Rfd8 {[%emt 0:00:34]} 16. h3 {[%emt 0:03:09]} h6 {[%emt 0:00:40]} 17. Bf1 {[%emt 0:01:31]} Qe8 {[%emt 0:01:42]} 18. Qf4 {[%emt 0:00:59]} cxd4 {[%emt 0:01:40]} 19. cxd4 {[%emt 0:00:04]} c5 {[%emt 0:00:01]} 20. Nd2 {[%emt 0:00:28]} e5 {[%emt 0:03:10]} 21. dxe5 {[%emt 0:00:06]} Qxe5 {[%emt 0:00:01]} 22. Qxe5 {[%emt 0:00:41]} Nxe5 {[%emt 0:00:01]} 23. Nxe4 {[%emt 0:01:39]} Nxe4 {[%emt 0:00:02]} 24. Bg2 {[%emt 0:00:00]} Rxd1 {[%emt 0:00:36]} 25. Rxd1 {[%emt 0:00:03]} Nc3 {[%emt 0:00:00]} 26. Rd2 {[%emt 0:00:44]} Re8 {[%emt 0:00:02]} 27. Bb2 {[%emt 0:00:11]} Nc4 {[%emt 0:00:11]} 0-1

[Event "Belt and Road Women-ch 2020"]
[Site "Xi'an"]
[Date "2020.12.04"]
[Round "4.1"]
[White "Abdumalik, Zhansaya"]
[Black "Hou, Yifan"]
[Result "0-1"]
[ECO "A31"]
[WhiteElo "2478"]
[BlackElo "2658"]
[Annotator "ChessBase"]
[PlyCount "130"]
[EventDate "2020.12.03"]
[EventCountry "CHN"]
[SourceTitle "playchess.com"]
[Source "ChessBase"]
[SourceQuality "1"]
[TimeControl "900+5"]

1. e4 {[%emt 0:00:01]} c5 {[%emt 0:00:02]} 2. Nf3 {[%emt 0:00:01]} a6 {[%emt 0:00:45]} 3. c4 {[%emt 0:01:04]} e6 {[%emt 0:00:03]} 4. Nc3 {[%emt 0:00:05]} b6 {[%emt 0:00:13]} 5. d4 {[%emt 0:00:05]} cxd4 {[%emt 0:00:02]} 6. Nxd4 {[%emt 0:00:01]} Bb7 {[%emt 0:00:01]} 7. Be2 {[%emt 0:00:21]} d6 {[%emt 0:00:22]} 8. O-O {[%emt 0:00:09]} Nf6 {[%emt 0:00:02]} 9. f3 {[%emt 0:00:26]} Be7 {[%emt 0:00:02]} 10. Be3 {[%emt 0:00:01]} O-O {[%emt 0:00:01]} 11. Qe1 {[%emt 0:00:25]} Nbd7 {[%emt 0:00:07]} 12. Rc1 {[%emt 0:00:17]} Re8 {[%emt 0:01:35]} 13. Qf2 {[%emt 0:00:10]} Rc8 {[%emt 0:00:25]} 14. Rfd1 {[%emt 0:00:11]} Qc7 {[%emt 0:00:03]} 15. Bf1 {[%emt 0:00:11]} Qb8 {[%emt 0:00:05]} 16. b3 {[%emt 0:01:19]} Bd8 {[%emt 0:01:15]} 17. Kh1 {[%emt 0:00:58]} Bc7 {[%emt 0:00:02]} 18. Nde2 {[%emt 0:01:35]} Ba8 {[%emt 0:02:51]} 19. a4 {[%emt 0:00:29]} Ne5 {[%emt 0:00:32]} 20. Bg5 {[%emt 0:00:43]} Bd8 {[%emt 0:00:14]} 21. Be3 {[%emt 0:00:39]} h6 {[%emt 0:00:59]} 22. h3 {[%emt 0:01:04]} Bc7 {[%emt 0:00:16]} 23. f4 {[%emt 0:01:13]} Ned7 {[%emt 0:00:05]} 24. Ng3 {[%emt 0:00:23]} Nc5 {[%emt 0:00:18]} 25. Qc2 {[%emt 0:00:11]} Qb7 {[%emt 0:01:25]} 26. Re1 {[%emt 0:01:16]} Ncxe4 {[%emt 0:01:49]} 27. Ngxe4 {[%emt 0:00:14]} Nxe4 {[%emt 0:00:03]} 28. Nxe4 {[%emt 0:00:06]} Qxe4 {[%emt 0:00:02]} 29. Qxe4 {[%emt 0:00:02]} Bxe4 {[%emt 0:00:01]} 30. Bxb6 {[%emt 0:00:00]} Bxb6 {[%emt 0:00:42]} 31. Rxe4 {[%emt 0:00:03]} a5 {[%emt 0:00:00]} 32. Rd1 {[%emt 0:00:21]} Bc5 {[%emt 0:00:10]} 33. Bd3 {[%emt 0:00:04]} Rb8 {[%emt 0:00:16]} 34. Bc2 {[%emt 0:00:02]} g6 {[%emt 0:00:17]} 35. Kh2 {[%emt 0:00:11]} Kg7 {[%emt 0:00:07]} 36. Re2 {[%emt 0:00:08]} Rb6 {[%emt 0:00:13]} 37. Kg3 {[%emt 0:00:06]} Reb8 {[%emt 0:00:15]} 38. Rd3 {[%emt 0:00:05]} Kf6 {[%emt 0:00:02]} 39. Kf3 {[%emt 0:00:02]} g5 {[%emt 0:00:02]} 40. fxg5+ {[%emt 0:00:22]} hxg5 {[%emt 0:00:02]} 41. Kg4 {[%emt 0:00:02]} Rg8 {[%emt 0:00:22]} 42. Rf3+ {[%emt 0:01:58]} Ke7 {[%emt 0:00:02]} 43. Rf5 {[%emt 0:01:11]} f6 {[%emt 0:00:31]} 44. Rf1 {[%emt 0:00:02]} Bd4 {[%emt 0:00:32]} 45. Kf3 {[%emt 0:00:14]} Be5 {[%emt 0:00:33]} 46. Rd1 {[%emt 0:00:01]} Rh8 {[%emt 0:00:03]} 47. Red2 {[%emt 0:00:06]} Rb4 {[%emt 0:00:08]} 48. Rd3 {[%emt 0:00:06]} Rh4 {[%emt 0:00:01]} 49. Kf2 {[%emt 0:00:06]} f5 {[%emt 0:00:03]} 50. Kf3 {[%emt 0:00:07]} Rb8 {[%emt 0:00:09]} 51. Kf2 {[%emt 0:00:02]} Rbh8 {[%emt 0:00:01]} 52. Re1 {[%emt 0:00:07]} Bd4+ {[%emt 0:00:06]} 53. Ke2 {[%emt 0:00:03]} Be5 {[%emt 0:00:24]} 54. Kd2 {[%emt 0:00:01]} g4 {[%emt 0:00:04]} 55. c5 {[%emt 0:00:14]} gxh3 {[%emt 0:00:09]} 56. cxd6+ {[%emt 0:00:08]} Bxd6 {[%emt 0:00:01]} 57. Rxd6 {[%emt 0:00:05]} Kxd6 {[%emt 0:00:01]} 58. gxh3 {[%emt 0:00:01]} Rxh3 {[%emt 0:00:02]} 59. Bd3 {[%emt 0:00:01]} Rh2+ {[%emt 0:00:05]} 60. Kc3 {[%emt 0:00:01]} R8h3 {[%emt 0:00:04]} 61. Rd1 {[%emt 0:00:05]} Kc5 {[%emt 0:00:03]} 62. Re1 {[%emt 0:00:03]} Rg2 {[%emt 0:00:18]} 63. Re5+ {[%emt 0:00:10]} Kd6 {[%emt 0:00:02]} 64. Rxa5 {[%emt 0:00:01]} Rgg3 {[%emt 0:00:01]} 65. Ra6+ {[%emt 0:00:00]} Ke5 {[%emt 0:00:03]} 0-1